fUST/lending_fUST_20250607
["ID","MTS","AMOUNT","RATE_DAILY","PERIOD"]
[364802526,1749246638700,-410.0,0.00019726,2]
[364802527,1749246638710,-440.0,0.00019726,2]
[364802528,1749246638720,-440.0,0.00019726,2]
[364802529,1749246638729,-440.0,0.00019726,2]
[364802530,1749246638740,-440.0,0.00019726,2]
[364802531,1749246638749,-440.0,0.00019726,2]
[364802532,1749246638759,-440.0,0.00019726,2]
[364802533,1749246638768,-440.0,0.00019726,2]
[364802534,1749246638777,-440.0,0.00019726,2]
[364802535,1749246638787,-440.0,0.00019726,2]
[364802536,1749246638796,-440.0,0.00019726,2]
[364802537,1749246638805,-440.0,0.00019726,2]
[364802538,1749246638815,-440.0,0.00019726,2]
[364802539,1749246638824,-440.0,0.00019726,2]
[364802540,1749246638834,-440.0,0.00019726,2]
[364802541,1749246638843,-440.0,0.00019726,2]
[364802542,1749246638852,-440.0,0.00019726,2]
[364802543,1749246638861,-410.0,0.00019726,2]
[364802544,1749246638871,-430.0,0.00019726,2]
[364802545,1749246638880,-410.0,0.00019726,2]
[364802546,1749246638889,-410.0,0.00019726,2]
[364802547,1749246638899,-440.0,0.00019726,2]
[364802548,1749246638908,-440.0,0.00019726,2]
[364802549,1749246638918,-440.0,0.00019726,2]
[364802550,1749246638928,-534.55347429,0.00019726,2]
[364802551,1749246638937,-440.0,0.00019726,2]
[364802552,1749246638947,-410.0,0.00019726,2]
[364802553,1749246638956,-410.0,0.00019726,2]
[364802554,1749246638966,-410.0,0.00019726,2]
[364802555,1749246638975,-1661.79,0.00019726,2]
[364802556,1749246638985,-440.0,0.00019726,2]
[364802557,1749246638995,-410.0,0.00019726,2]
[364802558,1749246639005,-2532.66,0.00019726,2]
[364802559,1749246639014,-410.0,0.00019726,2]
[364802560,1749246639024,-440.0,0.00019726,2]
[364802561,1749246639035,-2533.5,0.00019726,2]
[364802562,1749246639044,-410.0,0.00019726,2]
[364802563,1749246639054,-410.0,0.00019726,2]
[364802564,1749246639064,-410.0,0.00019726,2]
[364802565,1749246639073,-718.97,0.00019726,2]
[364802566,1749246639082,-1045.46,0.00019726,2]
[364802567,1749246639095,-440.0,0.00019726,2]
[364802568,1749246639105,-440.0,0.00019726,2]
[364802569,1749246639114,-495.28004367,0.00019726,2]
[364802570,1749246639124,-440.0,0.00019726,2]
[364802571,1749246639134,-440.0,0.00019726,2]
[364802572,1749246639143,-440.0,0.00019726,2]
[364802573,1749246639153,-440.0,0.00019726,2]
[364802574,1749246639162,-440.0,0.00019726,2]
[364802575,1749246639172,-440.0,0.00019726,2]
[364802576,1749246639182,-440.0,0.00019726,2]
[364802577,1749246639192,-410.0,0.00019726,2]
[364802578,1749246639202,-440.0,0.00019726,2]
[364802579,1749246639212,-440.0,0.00019726,2]
[364802580,1749246639222,-440.0,0.00019726,2]
[364802581,1749246639232,-440.0,0.00019726,2]
[364802582,1749246639242,-440.0,0.00019726,2]
[364802583,1749246639251,-440.0,0.00019726,2]
[364802584,1749246639261,-440.0,0.00019726,2]
[364802585,1749246639271,-440.0,0.00019726,2]
[364802586,1749246639281,-440.0,0.00019726,2]
[364802587,1749246639291,-1217.48,0.00019726,2]
[364802588,1749246639301,-260.99538037,0.00019726,2]
[364802589,1749246639311,-490.0,0.00019726,2]
[364802590,1749246639321,-440.0,0.00019726,2]
[364802591,1749246639331,-410.0,0.00019726,2]
[364802592,1749246639341,-440.0,0.00019726,2]
[364802593,1749246639352,-163.92597905,0.00019726,2]
[364802594,1749246639362,-470.0,0.00019726,2]
[364802595,1749246639371,-410.0,0.00019726,2]
[364802596,1749246639382,-440.0,0.00019726,2]
[364802597,1749246639393,-410.0,0.00019726,2]
[364802598,1749246639403,-440.0,0.00019726,2]
[364802599,1749246639412,-545.3,0.00019726,2]
[364802600,1749246639422,-440.0,0.00019726,2]
[364802601,1749246639431,-410.0,0.00019726,2]
[364802602,1749246639441,-456.02,0.00019726,2]
[364802603,1749246639571,-440.0,0.00019726,2]
[364802604,1749246639583,-440.0,0.00019726,2]
[364802605,1749246639595,-487.35543612,0.00019726,2]
[364802606,1749246639605,-440.0,0.00019726,2]
[364802607,1749246639615,-440.0,0.00019726,2]
[364802609,1749246639625,-440.0,0.00019726,2]
[364802611,1749246639634,-440.0,0.00019726,2]
[364802613,1749246639644,-410.0,0.00019726,2]
[364802615,1749246639655,-440.0,0.00019726,2]
[364802617,1749246639690,-440.0,0.00019726,2]
[364802618,1749246639706,-440.0,0.00019726,2]
[364802619,1749246639715,-440.0,0.00019726,2]
[364802620,1749246639725,-1347.95,0.00019726,2]
[364802621,1749246639736,-410.0,0.00019726,2]
[364802622,1749246639746,-440.0,0.00019726,2]
[364802623,1749246639756,-440.0,0.00019726,2]
[364802624,1749246639765,-1535.01,0.00019726,2]
[364802625,1749246639775,-440.0,0.00019726,2]
[364802626,1749246639785,-440.0,0.00019726,2]
[364802627,1749246639795,-440.0,0.00019726,2]
[364802628,1749246639804,-2752.06,0.00019726,2]
[364802629,1749246639814,-440.0,0.00019726,2]
[364802630,1749246639824,-410.0,0.00019726,2]
[364802631,1749246639834,-2256.09,0.00019726,2]
[364802632,1749246639843,-440.0,0.00019726,2]
[364802633,1749246639853,-440.0,0.00019726,2]
[364802634,1749246639862,-440.0,0.00019726,2]
[364802635,1749246639872,-440.0,0.00019726,2]
[364802636,1749246639881,-500.0,0.00019763,2]
[364802637,1749246639891,-500.0,0.00019772,2]
[364802638,1749246639901,-500.0,0.000198,2]
[364802639,1749246639911,-500.0,0.00019878,2]
[364802640,1749246639921,-536.41,0.00019999,2]
[364802641,1749246639930,-536.41,0.00019999,2]
[364802642,1749246639940,-536.41,0.00019999,2]
[364802643,1749246639949,-536.41,0.00019999,2]
[364802644,1749246639959,-1308.92,0.00019999,2]
[364802645,1749246639968,-440.0,0.00019999,2]
[364802646,1749246639978,-440.0,0.00019999,2]
[364802647,1749246639988,-1598.13,0.00019999,2]
[364802649,1749246639998,-440.0,0.00019999,2]
[364802651,1749246640007,-1467.14,0.00019999,2]
[364802652,1749246640017,-507.79,0.00019999,2]
[364802653,1749246640026,-2756.04,0.00019999,2]
[364802654,1749246640036,-1270.58,0.00019999,2]
[364802655,1749246640045,-440.0,0.00019999,2]
[364802656,1749246640055,-53562.34694016,0.0002,2]
[364802657,1749246640066,-1596.0,0.0002,2]
[364802658,1749246640075,-1596.0,0.0002,2]
[364802659,1749246640085,-324.57872674,0.0002,2]
[364802660,1749246640095,-440.0,0.0002,2]
[364802662,1749246640104,-440.0,0.0002,2]
[364802664,1749246640114,-440.0,0.0002,2]
[364802666,1749246640123,-317.71046366,0.0002,2]
[364802668,1749246640133,-440.0,0.0002,2]
[364802670,1749246640142,-440.0,0.0002,2]
[364802672,1749246640152,-440.0,0.0002,2]
[364802674,1749246640161,-392.10572513,0.0002,2]
[364802676,1749246640170,-440.0,0.0002,2]
[364802678,1749246640180,-539.17295753,0.0002,2]
[364802680,1749246640190,-443.44,0.0002,2]
[364802682,1749246640199,-440.0,0.0002,2]
[364802684,1749246640208,-440.0,0.0002,2]
[364802686,1749246640218,-440.0,0.0002,2]
[364802688,1749246640227,-440.0,0.0002,2]
[364802690,1749246640237,-440.0,0.0002,2]
[364802692,1749246640247,-430.0,0.0002,2]
[364802694,1749246640256,-440.0,0.0002,2]
[364802696,1749246640265,-440.0,0.0002,2]
[364802698,1749246640274,-440.0,0.0002,2]
[364802700,1749246640284,-440.0,0.0002,2]
[364802702,1749246640293,-400.0,0.0002,2]
[364802704,1749246640303,-400.0,0.0002,2]
[364802706,1749246640312,-440.0,0.0002,2]
[364802708,1749246640322,-400.0,0.0002,2]
[364802710,1749246640332,-400.0,0.0002,2]
[364802712,1749246640341,-510.0,0.0002,2]
[364802714,1749246640350,-440.0,0.0002,2]
[364802716,1749246640360,-440.0,0.0002,2]
[364802718,1749246640370,-440.0,0.0002,2]
[364802720,1749246640379,-440.0,0.0002,2]
[364802722,1749246640389,-440.0,0.0002,2]
[364802725,1749246640399,-400.0,0.0002,2]
[364802727,1749246640408,-400.0,0.0002,2]
[364802729,1749246640418,-440.0,0.0002,2]
[364802731,1749246640428,-440.0,0.0002,2]
[364802733,1749246640438,-550.0,0.0002,2]
[364802735,1749246640448,-440.0,0.0002,2]
[364802737,1749246640458,-440.0,0.0002,2]
[364802739,1749246640467,-440.0,0.0002,2]
[364802741,1749246640477,-440.0,0.0002,2]
[364802743,1749246640488,-1661.79,0.0002,2]
[364802745,1749246640498,-440.0,0.0002,2]
[364802747,1749246640508,-2532.66,0.0002,2]
[364802749,1749246640520,-2533.5,0.0002,2]
[364802751,1749246640530,-440.0,0.0002,2]
[364802753,1749246640540,-718.97,0.0002,2]
[364802755,1749246640550,-1045.46,0.0002,2]
[364802758,1749246640559,-440.0,0.0002,2]
[364802759,1749246640569,-238.86824835,0.0002,2]
[364802762,1749246640583,-440.0,0.0002,2]
[364802764,1749246640592,-400.0,0.0002,2]
[364802766,1749246640602,-440.0,0.0002,2]
[364802768,1749246640612,-440.0,0.0002,2]
[364802770,1749246640623,-440.0,0.0002,2]
[364802772,1749246640632,-440.0,0.0002,2]
[364802774,1749246640641,-440.0,0.0002,2]
[364802775,1749246640650,-400.0,0.0002,2]
[364802777,1749246640660,-440.0,0.0002,2]
[364802779,1749246640670,-440.0,0.0002,2]
[364802781,1749246640680,-440.0,0.0002,2]
[364802783,1749246640690,-440.0,0.0002,2]
[364802785,1749246640699,-440.0,0.0002,2]
[364802787,1749246640709,-440.0,0.0002,2]
[364802790,1749246640718,-440.0,0.0002,2]
[364802792,1749246640727,-1217.48,0.0002,2]
[364802793,1749246640737,-440.0,0.0002,2]
[364802796,1749246640748,-440.0,0.0002,2]
[364802798,1749246640758,-440.0,0.0002,2]
[364802800,1749246640767,-420.0,0.0002,2]
[364802801,1749246640776,-545.3,0.0002,2]
[364802803,1749246640786,-161.65,0.0002,2]
[364802805,1749246640795,-440.0,0.0002,2]
[364802808,1749246640805,-440.0,0.0002,2]
[364802810,1749246640814,-440.0,0.0002,2]
[364802812,1749246640824,-440.0,0.0002,2]
[364802814,1749246640834,-440.0,0.0002,2]
[364802816,1749246640844,-440.0,0.0002,2]
[364802818,1749246640854,-440.0,0.0002,2]
[364802820,1749246640864,-440.0,0.0002,2]
[364802822,1749246640874,-440.0,0.0002,2]
[364802824,1749246640890,-440.0,0.0002,2]
[364802826,1749246640900,-1347.95,0.0002,2]
[364802828,1749246640909,-440.0,0.0002,2]
[364802830,1749246640918,-440.0,0.0002,2]
[364802832,1749246640927,-1535.01,0.0002,2]
[364802834,1749246640936,-440.0,0.0002,2]
[364802836,1749246640946,-440.0,0.0002,2]
[364802838,1749246640955,-440.0,0.0002,2]
[364802840,1749246640964,-2752.06,0.0002,2]
[364802842,1749246640973,-440.0,0.0002,2]
[364802844,1749246640983,-2256.09,0.0002,2]
[364802846,1749246640992,-440.0,0.0002,2]
[364802848,1749246641001,-400.0,0.0002,2]
[364802850,1749246641011,-400.0,0.0002,2]
[364802852,1749246641020,-440.0,0.0002,2]
[364802854,1749246641030,-252.124,0.00020122,2]
[364802856,1749246641040,-367.370286,0.00020187,2]
[364802858,1749246641048,-160.0,0.00020211,2]
[364802860,1749246641057,-834.50537533,0.00020211,2]
[364802862,1749246641066,-160.0,0.00020211,2]
[364802864,1749246641075,-229.52673067,0.00020211,2]
[364802867,1749246641085,-423.83542519,0.00020211,2]
[364802869,1749246641094,-842.5625,0.00020211,2]
[364802871,1749246641103,-160.0,0.00020211,2]
[364802873,1749246641112,-212.976918,0.00020212,2]
[364802875,1749246641121,-160.0,0.00020212,2]
[364802877,1749246641132,-500.0,0.00020219,2]
[364802879,1749246641141,-297.29849381,0.00020221,2]
[364802881,1749246641150,-500.0,0.0002024,2]
[364802883,1749246641160,-447.3515898,0.00020245,2]
[364802885,1749246641170,-1000.0,0.00020253,2]
[364802887,1749246641180,-536.41,0.00020272,2]
[364802889,1749246641190,-440.0,0.00020273,2]
[364802891,1749246641199,-440.0,0.00020273,2]
[364802893,1749246641209,-440.0,0.00020273,2]
[364802895,1749246641218,-440.0,0.00020273,2]
[364802897,1749246641227,-440.0,0.00020273,2]
[364802899,1749246641237,-390.0,0.00020273,2]
[364802901,1749246641246,-298.33931887,0.00020273,2]
[364802903,1749246641255,-440.0,0.00020273,2]
[364802905,1749246641264,-348.709724,0.00020273,2]
[364802907,1749246641274,-440.0,0.00020273,2]
[364802910,1749246641283,-440.0,0.00020273,2]
[364802911,1749246641293,-390.0,0.00020273,2]
[364802914,1749246641302,-440.0,0.00020273,2]
[364802916,1749246641312,-440.0,0.00020273,2]
[364802918,1749246641321,-440.0,0.00020273,2]
[364802919,1749246641331,-440.0,0.00020273,2]
[364802922,1749246641340,-440.0,0.00020273,2]
[364802924,1749246641350,-440.0,0.00020273,2]
[364802925,1749246641359,-339.15,0.00020273,2]
[364802928,1749246641368,-249.36967264,0.00020273,2]
[364802929,1749246641378,-390.0,0.00020273,2]
[364802931,1749246641387,-390.0,0.00020273,2]
[364802934,1749246641397,-390.0,0.00020273,2]
[364802936,1749246641407,-440.0,0.00020273,2]
[364802938,1749246641416,-440.0,0.00020273,2]
[364802940,1749246641426,-440.0,0.00020273,2]
[364802942,1749246641435,-440.0,0.00020273,2]
[364802944,1749246641445,-1661.79,0.00020273,2]
[364802946,1749246641454,-440.0,0.00020273,2]
[364802948,1749246641464,-1308.92,0.00020273,2]
[364802950,1749246641474,-2532.66,0.00020273,2]
[364802952,1749246641483,-2533.5,0.00020273,2]
[364802954,1749246641493,-440.0,0.00020273,2]
[364802956,1749246641503,-718.97,0.00020273,2]
[364802958,1749246641516,-1045.46,0.00020273,2]
[364802960,1749246641525,-440.0,0.00020273,2]
[364802962,1749246641535,-440.0,0.00020273,2]
[364802964,1749246641544,-440.0,0.00020273,2]
[364802966,1749246641554,-440.0,0.00020273,2]
[364802968,1749246641563,-440.0,0.00020273,2]
[364802970,1749246641575,-1598.13,0.00020273,2]
[364802972,1749246641584,-440.0,0.00020273,2]
[364802974,1749246641593,-440.0,0.00020273,2]
[364802976,1749246641603,-440.0,0.00020273,2]
[364802978,1749246641612,-440.0,0.00020273,2]
[364802980,1749246641622,-440.0,0.00020273,2]
[364802982,1749246641631,-440.0,0.00020273,2]
[364802984,1749246641640,-440.0,0.00020273,2]
[364802986,1749246641650,-216.94,0.00020273,2]
[364802988,1749246641660,-440.0,0.00020273,2]
[364802990,1749246641670,-440.0,0.00020273,2]
[364802992,1749246641679,-440.0,0.00020273,2]
[364802994,1749246641689,-1467.14,0.00020273,2]
[364802996,1749246641699,-440.0,0.00020273,2]
[364802998,1749246641708,-1217.48,0.00020273,2]
[364803000,1749246641717,-375.9081,0.00020273,2]
[364803002,1749246641727,-390.0,0.00020273,2]
[364803004,1749246641735,-440.0,0.00020273,2]
[364803006,1749246641745,-545.3,0.00020273,2]
[364803008,1749246641754,-440.0,0.00020273,2]
[364803009,1749246641762,-2756.04,0.00020273,2]
[364803010,1749246641772,-390.0,0.00020273,2]
[364803011,1749246641780,-440.0,0.00020273,2]
[364803012,1749246641789,-440.0,0.00020273,2]
[364803013,1749246641798,-440.0,0.00020273,2]
[364803014,1749246641807,-440.0,0.00020273,2]
[364803015,1749246641817,-390.0,0.00020273,2]
[364803016,1749246641826,-380.0,0.00020273,2]
[364803017,1749246641835,-440.0,0.00020273,2]
[364803018,1749246641844,-440.0,0.00020273,2]
[364803019,1749246641854,-1347.95,0.00020273,2]
[364803020,1749246641863,-440.0,0.00020273,2]
[364803021,1749246641871,-440.0,0.00020273,2]
[364803022,1749246641881,-1535.01,0.00020273,2]
[364803023,1749246641890,-380.0,0.00020273,2]
[364803024,1749246641899,-440.0,0.00020273,2]
[364803025,1749246641908,-440.0,0.00020273,2]
[364803026,1749246641917,-2752.06,0.00020273,2]
[364803027,1749246641926,-1270.58,0.00020273,2]
[364803028,1749246641935,-440.0,0.00020273,2]
[364803029,1749246641945,-440.0,0.00020273,2]
[364803030,1749246641954,-2256.09,0.00020273,2]
[364803031,1749246641963,-440.0,0.00020273,2]
[364803033,1749246641998,-390.0,0.00020273,2]
[364803035,1749246642007,-500.0,0.0002032,2]
[364803037,1749246642016,-500.0,0.00020547,2]
[364803039,1749246642026,-440.0,0.00020547,2]
[364803041,1749246642035,-380.0,0.00020547,2]
[364803043,1749246642044,-440.0,0.00020547,2]
[364803045,1749246642054,-440.0,0.00020547,2]
[364803047,1749246642063,-440.0,0.00020547,2]
[364803049,1749246642072,-440.0,0.00020547,2]
[364803051,1749246642081,-380.0,0.00020547,2]
[364803053,1749246642089,-440.0,0.00020547,2]
[364803055,1749246642099,-549.81917017,0.00020547,2]
[364803057,1749246642108,-440.0,0.00020547,2]
[364803059,1749246642117,-440.0,0.00020547,2]
[364803061,1749246642126,-440.0,0.00020547,2]
[364803063,1749246642135,-440.0,0.00020547,2]
[364803065,1749246642145,-380.0,0.00020547,2]
[364803067,1749246642154,-1661.79,0.00020547,2]
[364803069,1749246642163,-440.0,0.00020547,2]
[364803071,1749246642173,-1308.92,0.00020547,2]
[364803073,1749246642183,-2532.66,0.00020547,2]
[364803075,1749246642192,-2533.5,0.00020547,2]
[364803077,1749246642201,-440.0,0.00020547,2]
[364803079,1749246642210,-718.97,0.00020547,2]
[364803081,1749246642219,-1045.46,0.00020547,2]
[364803083,1749246642228,-440.0,0.00020547,2]
[364803085,1749246642237,-440.0,0.00020547,2]
[364803087,1749246642247,-440.0,0.00020547,2]
[364803089,1749246642256,-440.0,0.00020547,2]
[364803091,1749246642265,-440.0,0.00020547,2]
[364803093,1749246642274,-1598.13,0.00020547,2]
[364803095,1749246642284,-440.0,0.00020547,2]
[364803097,1749246642294,-440.0,0.00020547,2]
[364803099,1749246642304,-440.0,0.00020547,2]
[364803101,1749246642314,-555.86,0.00020547,2]
[364803103,1749246642324,-440.0,0.00020547,2]
[364803105,1749246642334,-440.0,0.00020547,2]
[364803107,1749246642344,-343.90499062,0.00020547,2]
[364803109,1749246642354,-440.0,0.00020547,2]
[364803111,1749246642363,-440.0,0.00020547,2]
[364803113,1749246642373,-440.0,0.00020547,2]
[364803116,1749246642383,-1467.14,0.00020547,2]
[364803118,1749246642394,-440.0,0.00020547,2]
[364803120,1749246642404,-1217.48,0.00020547,2]
[364803122,1749246642414,-440.0,0.00020547,2]
[364803125,1749246642424,-545.3,0.00020547,2]
[364803127,1749246642434,-440.0,0.00020547,2]
[364803129,1749246642444,-2756.04,0.00020547,2]
[364803131,1749246642454,-440.0,0.00020547,2]
[364803133,1749246642465,-440.0,0.00020547,2]
[364803135,1749246642474,-440.0,0.00020547,2]
[364803137,1749246642488,-440.0,0.00020547,2]
[364803139,1749246642498,-440.0,0.00020547,2]
[364803142,1749246642508,-440.0,0.00020547,2]
[364803145,1749246642519,-1347.95,0.00020547,2]
[364803147,1749246642530,-440.0,0.00020547,2]
[364803151,1749246642541,-440.0,0.00020547,2]
[364803154,1749246642552,-1535.01,0.00020547,2]
[364803157,1749246642562,-440.0,0.00020547,2]
[364803160,1749246642576,-440.0,0.00020547,2]
[364803162,1749246642586,-2752.06,0.00020547,2]
[364803164,1749246642596,-1270.58,0.00020547,2]
[364803166,1749246642606,-440.0,0.00020547,2]
[364803168,1749246642617,-400.0,0.00020547,2]
[364803170,1749246642628,-2256.09,0.00020547,2]
[364803172,1749246642638,-440.0,0.00020547,2]
[364803174,1749246642649,-500.0,0.00020548,2]
[364803177,1749246642660,-500.0,0.00020548,2]
[364803179,1749246642670,-500.0,0.00020548,2]
[364803181,1749246642681,-500.0,0.00020548,2]
[364803183,1749246642691,-500.0,0.00020548,2]
[364803185,1749246642701,-500.0,0.00020548,2]
[364803187,1749246642710,-502.71705427,0.00020548,2]
[364803189,1749246642720,-500.0,0.00020548,2]
[364803191,1749246642731,-500.0,0.00020548,2]
[364803193,1749246642741,-500.0,0.00020548,2]
[364803195,1749246642750,-500.0,0.00020548,2]
[364803197,1749246642760,-500.0,0.00020548,2]
[364803199,1749246642770,-524.45348843,0.00020548,2]
[364803201,1749246642779,-500.0,0.00020548,2]
[364803203,1749246642790,-500.0,0.00020548,2]
[364803205,1749246642801,-500.0,0.00020548,2]
[364803208,1749246642811,-500.0,0.00020548,2]
[364803210,1749246642821,-500.0,0.00020548,2]
[364803212,1749246642832,-500.0,0.00020548,2]
[364803214,1749246642841,-500.0,0.00020548,2]
[364803216,1749246642851,-500.0,0.00020548,2]
[364803218,1749246642862,-500.0,0.00020548,2]
[364803220,1749246642872,-500.0,0.00020548,2]
[364803222,1749246642882,-500.0,0.00020548,2]
[364803224,1749246642892,-500.0,0.00020548,2]
[364803226,1749246642902,-500.0,0.00020548,2]
[364803228,1749246642912,-500.0,0.00020548,2]
[364803231,1749246642923,-500.0,0.00020548,2]
[364803234,1749246642933,-3156.86977727,0.00020585,2]
[364803237,1749246642943,-342.0,0.000206,2]
[364803240,1749246642955,-984.69,0.000206,2]
[364803243,1749246642965,-54978.75,0.000206,2]
[364803246,1749246642975,-1000.0,0.00020753,2]
[364803249,1749246642986,-440.0,0.00020821,2]
[364803252,1749246642996,-440.0,0.00020821,2]
[364803255,1749246643006,-440.0,0.00020821,2]
[364803258,1749246643016,-440.0,0.00020821,2]
[364803264,1749246643026,-203.32,0.00020821,2]
[364803267,1749246643036,-151.0,0.00020821,2]
[364803269,1749246643046,-151.0,0.00020821,2]
[364803271,1749246643056,-440.0,0.00020821,2]
[364803273,1749246643066,-457.26,0.00020821,2]
[364803275,1749246643076,-440.0,0.00020821,2]
[364803277,1749246643086,-390.0,0.00020821,2]
[364803279,1749246643097,-1661.79,0.00020821,2]
[364803281,1749246643107,-440.0,0.00020821,2]
[364803283,1749246643117,-1308.92,0.00020821,2]
[364803285,1749246643126,-2532.66,0.00020821,2]
[364803287,1749246643136,-2533.5,0.00020821,2]
[364803289,1749246643146,-440.0,0.00020821,2]
[364803292,1749246643156,-718.97,0.00020821,2]
[364803294,1749246643165,-1045.46,0.00020821,2]
[364803296,1749246643176,-440.0,0.00020821,2]
[364803298,1749246643185,-440.0,0.00020821,2]
[364803300,1749246643195,-440.0,0.00020821,2]
[364803302,1749246643204,-440.0,0.00020821,2]
[364803304,1749246643214,-440.0,0.00020821,2]
[364803306,1749246643224,-1598.13,0.00020821,2]
[364803308,1749246643234,-440.0,0.00020821,2]
[364803310,1749246643243,-440.0,0.00020821,2]
[364803312,1749246643254,-440.0,0.00020821,2]
[364803314,1749246643264,-440.0,0.00020821,2]
[364803316,1749246643273,-440.0,0.00020821,2]
[364803318,1749246643284,-440.0,0.00020821,2]
[364803321,1749246643294,-440.0,0.00020821,2]
[364803323,1749246643304,-440.0,0.00020821,2]
[364803325,1749246643314,-1467.14,0.00020821,2]
[364803327,1749246643323,-440.0,0.00020821,2]
[364803329,1749246643333,-1217.48,0.00020821,2]
[364803331,1749246643343,-360.0,0.00020821,2]
[364803333,1749246643352,-545.3,0.00020821,2]
[364803335,1749246643362,-440.0,0.00020821,2]
[364803337,1749246643372,-2756.04,0.00020821,2]
[364803339,1749246643382,-440.0,0.00020821,2]
[364803341,1749246643392,-440.0,0.00020821,2]
[364803343,1749246643402,-440.0,0.00020821,2]
[364803345,1749246643412,-440.0,0.00020821,2]
[364803347,1749246643422,-440.0,0.00020821,2]
[364803349,1749246643432,-440.0,0.00020821,2]
[364803351,1749246643442,-1347.95,0.00020821,2]
[364803353,1749246643451,-440.0,0.00020821,2]
[364803355,1749246643461,-370.0,0.00020821,2]
[364803358,1749246643471,-1535.01,0.00020821,2]
[364803359,1749246643480,-440.0,0.00020821,2]
[364803361,1749246643490,-440.0,0.00020821,2]
[364803364,1749246643499,-2752.06,0.00020821,2]
[364803366,1749246643509,-1270.58,0.00020821,2]
[364803368,1749246643520,-440.0,0.00020821,2]
[364803370,1749246643530,-2256.09,0.00020821,2]
[364803372,1749246643541,-440.0,0.00020821,2]
[364803375,1749246643550,-300.0,0.0002083,2]
[364803379,1749246643561,-630.0,0.00020848,2]
[364803381,1749246643572,-153.01897109,0.00020848,2]
[364803383,1749246643584,-151.0,0.00020848,2]
[364803385,1749246643594,-151.0,0.00020848,2]
[364803387,1749246643603,-217.96894018,0.00020848,2]
[364803389,1749246643613,-630.0,0.00020875,2]
[364803391,1749246643625,-420.0,0.00020897,2]
[364803393,1749246643635,-420.0,0.00020897,2]
[364803395,1749246643644,-1631.69417772,0.000209,4]
[364803397,1749246643656,-630.0,0.00020903,2]
[364803399,1749246643668,-630.0,0.0002093,2]
[364803401,1749246643678,-364.5816698,0.00020932,2]
[364803403,1749246643688,-630.0,0.00020958,2]
[364803405,1749246643699,-630.0,0.00020985,2]
[364803407,1749246643708,-630.0,0.00021012,2]
[364803409,1749246643718,-536.41,0.00021037,2]
[364803412,1749246643729,-1631.69417752,0.00021038,4]
[364803414,1749246643738,-630.0,0.0002104,2]
[364803416,1749246643748,-630.0,0.00021067,2]
[364803418,1749246643758,-630.0,0.00021095,2]